Cogmind - Beta 17 @@@ ROGUE MODE // 2026.07.09 @ 23:33:40 Player: Kretinosaurus Result: Destroyed by D-53 Grenadier with Mini Grenade Launcher Performance ------------- Evolutions (1) 500 Regions Visited (3) 600 Robots Destroyed (25) 125 Value Destroyed (665) 665 Prototype IDs (0) 0 Alien Tech Used (0) 0 Bonus (0) 0 TOTAL SCORE: 1890 Bonus ------- None Cogmind --------- Core Integrity 0/400 Matter 288/300 Energy 98/100 System Corruption 2% Temperature Cool (0) Movement Core (50) Location -9/Mines Parts ------- > --- POWER (1) -------- (None) > --- PROPULSION (4) --- (None) > --- UTILITY (2) ------ (None) > --- WEAPON (2) ------- (None) > --- INVENTORY (5) ---- Nuclear Core Light Treads Medium Storage Unit Improved Targeting Computer Hardened Light Armor Plating Peak State ------------ > --- POWER ------------ Nuclear Core > --- PROPULSION ------- Aluminum Leg Aluminum Leg Aluminum Leg Improved Aluminum Leg > --- UTILITY ---------- Medium Storage Unit Seismic Detector > --- WEAPON ----------- Light Assault Rifle Grenade Launcher > --- INVENTORY -------- Improved Ion Engine Light Treads Light Treads Heat Sink Medium Storage Unit Signal Interpreter Improved Targeting Computer Light Armor Plating Hardened Light Armor Plating Light Cannon [Rating: 13] Favorites ----------- Power Ion Engine Engine Ion Engine Power Core Nuclear Core Propulsion Aluminum Leg Leg Aluminum Leg Utility Seismic Detector Device Seismic Detector Storage Medium Storage Unit Weapon Light Cannon Energy Gun Medium Laser Ballistic Gun Light Assault Rifle Ballistic Cannon Light Cannon Launcher Grenade Launcher Build | -11 -10 -9 -9 ------- Run | Yrd Mat Mat Min Slots Evolved 2 | . . 2 . Power . | . . . . Propulsion 2 | . . 2 . Utility . | . . . . Weapon . | . . . . Parts Attached 19 | 8 4 6 1 Power 3 | 1 . 2 . Engine 2 | 1 . 1 . Core 1 | . . 1 . Reactor . | . . . . Propulsion 6 | 2 . 3 1 Treads . | . . . . Leg 6 | 2 . 3 1 Wheel . | . . . . Hover . | . . . . Flight . | . . . . Utility 4 | 3 1 . . Device 2 | 2 . . . Storage 2 | 1 1 . . Processor . | . . . . Hackware . | . . . . Protection . | . . . . Artifact . | . . . . Weapon 6 | 2 3 1 . Energy Gun 1 | 1 . . . Energy Cannon . | . . . . Ballistic Gun 2 | 1 1 . . Ballistic Cannon 2 | . 2 . . Launcher 1 | . . 1 . Special Weapon . | . . . . Impact Weapon . | . . . . Slashing Weapon . | . . . . Piercing Weapon . | . . . . Special Melee Weapon . | . . . . Unidentified Prototypes . | . . . . Parts Lost 10 | . . 3 7 Power 1 | . . . 1 Propulsion 6 | . . 3 3 Utility 1 | . . . 1 Weapon 2 | . . . 2 Highest Loss Streak 5 | . . 2 5 To Critical Strikes . | . . . . Average Backups 8 | 2 7 9 8 Power . | . 1 1 1 Propulsion 2 | 1 2 2 1 Utility 3 | . 1 5 5 Weapon 1 | . 2 1 . Tool/Special . | . . . . Unused Backups 14 | . 3 2 9 Power 4 | . 1 2 1 Propulsion 2 | . . . 2 Utility 7 | . 1 . 6 Weapon 1 | . 1 . . Tool/Special . | . . . . Average Slot Usage (%) 89 | . 99 93 45 Engine 9 | . 14 7 . Core 2 | . . 3 7 Leg 30 | . 28 38 17 Device 10 | . 13 11 2 Storage 11 | . 14 11 7 Energy Gun 1 | . 2 . . Ballistic Gun 10 | . 14 11 . Ballistic Cannon 8 | . 11 5 2 Launcher 2 | . . 5 6 Peak Build Rating 13 | 9 8 13 11 Average Rating 8 | 5 7 11 6 On Entrance 6 | . 7 8 11 Avg Prop Armor Cover (%) . | . . . . Naked Turns 42 | . . . 42 Heaviest Build 23 | 15 20 22 23 Greatest Support 43 | 20 20 43 33 Greatest Overweight (x) 6 | . . . 6 Average Overweight (x) . | . . . . Largest Inventory Capacity 10 | 8 10 10 10 Average Capacity 8 | 6 8 10 8 Most Carried 10 | 5 10 10 10 Average Carried 8 | 2 7 9 8 Final Capacity 10 | 8 10 10 5 Final Carried 10 | 5 10 10 5 Class Distribution -------------------- 69% | Mutant 16% | Scavenger-Mutant 13% | Scientist-Mutant Dominant Class ---------------- Mutant | -10/Materials Scavenger-Mutant | -9/Materials Mutant | -9/Mines Resources | -11 -10 -9 -9 ----------- Run | Yrd Mat Mat Min Matter Collected 887 | 295 150 152 290 Remotely . | . . . . Salvage Created 576 | 72 136 220 148 Parts 42 | 9 8 17 8 Haulers Intercepted . | . . . . Recyclers Shooed . | . . . . Parts Field Recycled . | . . . . Retrieved Matter . | . . . . Parts Self-Destructed . | . . . . Prevented . | . . . . Parts Restored . | . . . . Kills | -11 -10 -9 -9 ------- Run | Yrd Mat Mat Min Combat Hostiles Destroyed 21 | . 5 9 7 Guns 2 | . 2 . . Cannons 5 | . 3 2 . AOE 14 | . . 7 7 Classes Destroyed 8 | 1 3 2 2 Worker 3 | . . . 3 Builder 1 | . . 1 . Tunneler 3 | 3 . . . Watcher 1 | . 1 . . Swarmer 2 | . 2 . . Grunt 11 | . 3 5 3 Sentry 4 | . . 4 . Assembled 4 | . . . 4 Best Kill Streak 7 | 3 2 7 5 Combat Bots Only 6 | . 2 6 4 Max Kills in Single Turn 4 | 1 1 2 4 Gunslinging . | . . . . Exploded 4 | . . 2 4 Melee . | . . . . Uniques/NPCs Destroyed . | . . . . Combat | -11 -10 -9 -9 -------- Run | Yrd Mat Mat Min Hostile Shots Fired 131 | . 33 61 37 Missed 36 | . 7 22 7 Hits 95 | . 26 39 30 Melee 7 | . . . 7 Projectile 88 | . 26 39 23 AOE 3 | . . . 3 Critical Strikes 2 | . 1 . 1 Damage Taken 1545 | . 330 571 644 Core 469 | . 56 38 375 Absorbed by Shields . | . . . . Regen/Repaired (Parts) 3 | . 3 . . Core Remaining (%) 88 | 100 77 . . Volleys Fired 83 | 5 28 42 8 Largest 2 | 2 2 2 1 Hottest 70 | 70 50 50 30 Shots Fired 126 | 10 56 52 8 Gun 60 | 10 28 22 . Cannon 38 | . 28 10 . Launcher 28 | . . 20 8 Special . | . . . . Kinetic 93 | 5 56 32 . Thermal 5 | 5 . . . Explosive 28 | . . 20 8 Electromagnetic . | . . . . Robot Hit Streak 10 | 1 7 10 . Robot Miss Streak 8 | 8 7 3 3 Penetration Max . | . . . . Secondary Targets . | . . . . Shots Hit Robots 62 | 1 26 35 . Core Hits 62 | 3 9 27 23 Critical Kills . | . . . . Critical Parts Destroyed . | . . . . Critical Strikes . | . . . . Melee Attacks . | . . . . Impact . | . . . . Slashing . | . . . . Piercing . | . . . . Sneak Attacks . | . . . . Combat Hostiles . | . . . . Follow-up Attacks . | . . . . Damage Inflicted 1896 | 47 370 913 566 Guns 273 | 47 131 95 . Cannons 372 | . 237 135 . Explosions 1238 | . . 683 555 Melee . | . . . . Ramming 13 | . 2 . 11 Kinetic 609 | 11 368 230 . Thermal 36 | 36 . . . Explosive 1238 | . . 683 555 Electromagnetic . | . . . . Impact . | . . . . Slashing . | . . . . Piercing . | . . . . Highest Corruption 2 | . . . 2 Average Corruption 2 | . . . 2 Corruption Purged . | . . . . Corruption Blocked . | . . . . Effects 1 | . . . 1 Message Errors 1 | . . . 1 Overload Shots . | . . . . Overflow Damage 34 | . 16 4 14 Projectiles 16 | . 16 . . Explosions 18 | . . 4 14 Melee . | . . . . Knockbacks 5 | . 5 . . Impact . | . . . . Kinetic 5 | . 5 . . Secondary . | . . . . Self-Inflicted Damage 113 | . . 34 79 Shots 4 | . . 1 3 Rammed 1 | . . . 1 Targets Rammed 2 | . 1 . 1 Kicked 1 | . 1 . . Crushed . | . . . . Highest Temperature 27 | 27 25 26 . Average Temperature 9 | 12 9 7 . Received Heat Transfer 411 | . 165 198 48 Siege Activations . | . . . . Martial Activations . | . . . . Shielding Activations . | . . . . Robots Disrupted . | . . . . Combat Hostiles . | . . . . Robots Corrupted . | . . . . Combat Hostiles . | . . . . Parts Fried . | . . . . Impact Corruptions . | . . . . Robots Melted . | . . . . Combat Hostiles . | . . . . Parts Melted . | . . . . Heat Transferred 111 | 111 . . . Parts Sabotaged . | . . . . Parts Stolen . | . . . . Parts Stripped . | . . . . Power Chain Reactions . | . . . . Alert | -11 -10 -9 -9 ------- Run | Yrd Mat Mat Min Maximum Alert Level 1 | . . 1 . Low Security (%) 98 | 100 100 96 100 Level 1 1 | . . 3 . Level 2 . | . . . . Level 3 . | . . . . Level 4 . | . . . . Level 5 . | . . . . High Security . | . . . . Max Security . | . . . . Peak Influence 209 | 10 50 209 154 Initial 57 | . . . 57 Average 48 | 1 10 86 104 Influence Increases 626 | 15 129 342 140 Destroy 0b10 Robot/C 340 | . 100 180 60 Destroy 0b10 Robot/NC 40 | 15 5 5 15 Destroy Leader 82 | . 22 50 10 Successful Hack 4 | . . 4 . Disable Machine 30 | . . 15 15 Destroy Structure 115 | . 2 73 40 Lose Combat Pursuer 15 | . . 15 . Influence Decreases 569 | 15 129 194 231 Entered New Map 91 | . . . 91 Time Decay 378 | 15 129 164 70 Lost Part 100 | . . 30 70 Squads Dispatched 2 | . 1 1 . Investigation 1 | . . 1 . Extermination . | . . . . Reinforcement 1 | . 1 . . Assault . | . . . . Garrison . | . . . . Intercept . | . . . . Searches Triggered . | . . . . Construction Impeded . | . . . . Haulers Reinforced . | . . . . Active Scanning Responses . | . . . . Cargo Convoy Interrupts . | . . . . Stealth | -11 -10 -9 -9 --------- Run | Yrd Mat Mat Min Distress Signals 2 | . 2 . . Communications Jammed . | . . . . Distress Signals . | . . . . Times Spotted 52 | . 11 16 25 Peak Tracking Total 20 | . 3 6 20 Tactical Retreats 3 | . . 1 2 Traps | -11 -10 -9 -9 ------- Run | Yrd Mat Mat Min Traps Triggered . | . . . . Indirectly . | . . . . Trap Hack Attempts . | . . . . Triggered . | . . . . Disarmed . | . . . . Reprogrammed . | . . . . Reused . | . . . . Traps Extracted . | . . . . Installed . | . . . . Triggered . | . . . . Machines | -11 -10 -9 -9 ---------- Run | Yrd Mat Mat Min Machines Disabled 2 | . . 1 1 Max in Single Turn 1 | . . 1 1 Machines Repaired . | . . . . Machines Dismantled . | . . . . Machines Sabotaged . | . . . . Overloaded Fab Kills . | . . . . Hacking | -11 -10 -9 -9 --------- Run | Yrd Mat Mat Min Machines Accessed 9 | . 4 5 . Terminals 6 | . 3 3 . Fabricators . | . . . . Repair Stations 1 | . 1 . . Recycling Units 1 | . . 1 . Scanalyzers 1 | . . 1 . Garrison Access . | . . . . Total Hacks 35 | . 14 21 . Successful 19 | . 6 13 . Failed 16 | . 8 8 . Catastrophic 6 | . 4 2 . Database Lockouts . | . . . . Manual 11 | . 6 5 . Terminals 18 | . 10 8 . Fabricators . | . . . . Repair Stations 4 | . 4 . . Recycling Units 2 | . . 2 . Scanalyzers 11 | . . 11 . Garrison Access . | . . . . Terminal Hacks 6 | . 4 2 . Record 4 | . 3 1 . Hauler Manifests 1 | . . 1 . Registered Components 1 | . 1 . . Fabricator Hacks . | . . . . Repair Station Hacks 2 | . 2 . . Scan Component 1 | . 1 . . Repair 1 | . 1 . . Recycling Unit Hacks 2 | . . 2 . Report Inventory 1 | . . 1 . Retrieve Matter 1 | . . 1 . Scanalyzer 9 | . . 9 . Insert Component 1 | . . 1 . Analyze 1 | . . 1 . Retrieve Study 7 | . . 7 . Garrison Access Hacks . | . . . . Unauthorized Hacks . | . . . . Terminals . | . . . . Fabricators . | . . . . Repair Stations . | . . . . Recycling Units . | . . . . Scanalyzers . | . . . . Garrison Access . | . . . . Data Cores Recovered . | . . . . Used . | . . . . Hacking Detections 8 | . 4 4 . Full Trace Events 1 | . . 1 . Feedback Events . | . . . . Feedback Blocked . | . . . . Robot Schematics Acquired . | . . . . Robots Built . | . . . . Authchips . | . . . . Time . | . . . . Total Robot Build Rating . | . . . . Part Schematics Acquired 1 | . . 1 . Parts Built . | . . . . Authchips . | . . . . Time . | . . . . Total Part Build Rating . | . . . . Part Studies Acquired 6 | . . 6 . Parts Repaired 1 | . 1 . . Time 26 | . 26 . . Parts Recycled . | . . . . Recycled Matter . | . . . . Retrieved Matter . | . . . . Retrieved Components . | . . . . Parts Scanalyzed 1 | . . 1 . Part Schematics Acquired 1 | . . 1 . Parts Damaged . | . . . . Bothacking | -11 -10 -9 -9 ------------ Run | Yrd Mat Mat Min Used RIF Installer . | . . . . Robots Hacked . | . . . . Non-combat . | . . . . Combat . | . . . . Robot Hacks Applied . | . . . . Relay Couplers Released . | . . . . Fabnet Peak Effective % . | . . . . Robots Rewired . | . . . . Allies Hacked . | . . . . Hacks Repelled . | . . . . Allies | -11 -10 -9 -9 -------- Run | Yrd Mat Mat Min Total Allies . | . . . . Largest Group . | . . . . Highest-Rated Group . | . . . . Highest-Rated Ally . | . . . . Total Orders . | . . . . Ally Attacks . | . . . . Total Damage . | . . . . Kills . | . . . . Allies Corrupted . | . . . . Allies Melted . | . . . . Intel | -11 -10 -9 -9 ------- Run | Yrd Mat Mat Min Active Infowar (turns) 997 | 25 509 441 22 Terrain 9 | 9 . . . Seismic 988 | 16 509 441 22 Robot Analysis Total . | . . . . Derelict Logs Recovered . | . . . . Drone Launches . | . . . . Drone Recoveries . | . . . . Exploration | -11 -10 -9 -9 ------------- Run | Yrd Mat Mat Min Turns Passed 1220 | 92 535 441 152 Spaces Moved 794 | 51 307 278 158 Core 88 | 1 . . 87 Treads . | . . . . Legs 706 | 50 307 278 71 Wheels . | . . . . Hover . | . . . . Flight . | . . . . Fastest Speed 50 | 50 120 105 50 Average Speed 111 | 118 120 116 82 Slowest Speed 350 | 120 120 120 350 Overloaded Moves . | . . . . Propulsion Burnouts . | . . . . Robots Hopped . | . . . . Potential Cave-ins 3 | . . 3 . Cave-ins Triggered . | . . . . Exploration Rate (%) 28 | 4 51 25 33 Regions Visited 3 Branch Regions 1 Pre-discovered Areas . | . . . . Known Exits Taken . | . . . . Unknown Exits Taken 3 | 1 1 1 . Scrap Searched 2 | . . . 2 Spaces Dug . | . . . . Terrain Destroyed 146 | . . 87 59 Melee . | . . . . Projectile . | . . . . AOE 146 | . . 87 59 Terrain Rammed . | . . . . Walls Destroyed . | . . . . Machines Disabled . | . . . . Actions | -11 -10 -9 -9 --------- Run | Yrd Mat Mat Min Total 1011 | 69 420 348 174 Wait 75 | . 63 12 . Move 791 | 50 306 277 158 Hop . | . . . . Pick Up 21 | 6 10 5 . Fast Attach 10 | 6 1 2 1 Attach 3 | 1 . 1 1 Detach . | . . . . Swap 8 | 1 4 3 . Drop 18 | . 7 6 5 Fire 83 | 5 28 42 8 Melee . | . . . . Ram 1 | . . . 1 Kick 1 | . 1 . . Crush . | . . . . Escape Stasis . | . . . . Rewire . | . . . . Trap . | . . . . Miscellaneous . | . . . . Route ------- -11/Scrapyard -10/Materials (discovered 2 exits: *Mat / [*Min]) -9/Materials (discovered 2 exits: [*Min x2]) -9/Mines History --------- Turn | Location | Event 9 | -11/Scrapyard | Discovered new exit (range 16) 93 | -11/Scrapyard | Entered Materials 235 | -10/Materials | Repaired Seismic Detector 244 | -10/Materials | Discovered new exit (range 11) 324 | -10/Materials | Build established: Mutant 536 | -10/Materials | Discovered new exit (range 14) 628 | -10/Materials | Entered another Materials area 628 | -9/Materials | Evolved 2 slots: Propulsion x2 1000 | -9/Materials | Discovered new exit (range 4) 1033 | -9/Materials | Discovered new exit (range 12) 1069 | -9/Materials | Entered Mines 1143 | -9/Mines | Assembled infested the area 1167 | -9/Mines | Core integrity fell below 50% 1205 | -9/Mines | Lost 5 parts (1p3n1w) 1217 | -9/Mines | Core integrity fell below 20% 1221 | -9/Mines | Destroyed by D-53 Grenadier with Mini Grenade Launcher Last Messages --------------- 01195_ Found Spread Laser. 01195_ Found Targeting Computer. 01195_ Found Arm. Wheel. 01195_ Found 60 Matter. 01196_ Acquired 60 matter. 01197_ K-01 Serf cleans the Laser Drill. 01201_ as-75901 sneak attacks. 01201_ K-01 Serf system corrupted by crushing effect. 01201_ K-01 Serf knocked back. 01203_ Slammed into K-01 Serf. 01203_ K-01 Serf destroyed. 01204_ Acquired 17 matter. 01205_ Acquired 24 matter. 01207_ Acquired 62 matter. 01213_ K-01 Serf collects debris. 01216_ C-45 Heavy ARC bursts open, deploying its payload. 01216_ D-53 Grenadier unfolds itself. 01216_ K-01 Serf destroyed. 01217_ MR8R#6P V FO#G%&VKVEPS8J [Achievement: Deductive Reasoning] Map ----- +----------------------------------------------------+ | ?????????????????????????????????????????? | | ?????????????????????????????????????????? | | ?????????????????????????????????????????? | | ?????????????????????????????????????????? | | ?????????????????????????????????????????? | | ?????????????????????????????????????????? | | ?????????????????????????????????????????? | | ?????????????????????????????????????????? | | ?????????????????????????????????????????? | | ?????????????????????????????????????????? | | ?????????????????????????????????????????? | | ?????????????????????????????????????????? | | ?????????????????????????????????????????? | | ?????????????????????????????????????????? | | ?????????????????????????????????????????? | | ??????? ????????????????????????????????? | | ????? #?###???????????????????????????? | | ????? ## #??????????????????????????? | | ?????? ???###????????????????????? | | ??????? ??? #????????????????????? | | ????????# " #???# #????????????????????? | | ?????????#%" #???# #????????????????????? | | ??###???##" #???# #????????????????????? | | # ##?## ##??# #??######????????????? | | #?# #### #### ##r #???????? | | ## # @ #???????? | | ??# !d """ #???????? | | ????????## % #### """ ##???????? | | ????????## #??# """ ##????????? | | ????????# ##??## #?????????? | | ????????## ##????###u #?????????? | | ?????????# #????????## #????????? | | ?????????# #??????????# ????????? | | ?????????# # #??????????? ?????????? | | ?????????### ####???????????? ????????? | | ############ #????????????????? ????????? | | ! #??????????????????????????? | | ###### ########??????????????????????????? | | ####?# #?????????????????????????????????? | | #?# #?????????????????????????????????? | | " #?# ?????????????????????????????????? | | " #?###?????????????????????????????????? | | " #?????????????????????????????????????? | | #?????????????????????????????????????? | | " #?????????????????????????????????????? | | " #?????????????????????????????????????? | | " #?????????????????????????????????????? | | #?????????????????????????????????????? | | ####?????????????????????????????????????? | | ?????????????????????????????????????????? | +----------------------------------------------------+ Best States ------------- Heat Dissipation 28 Energy Generation 14 Energy Capacity 265 Matter Stores 300 Matter Capacity 300 Sight Range 16 Terrain Scan Range 16 Terrain Scan Density 10 Evasion (%) 55 Item Schematics ----------------- Hrd. Light Armor Plating | -9/Materials | Scanalyzed Robot Schematics ------------------ None Fabricated ------------ Nothing Repaired ---------- Seismic Detector | 85% | -10/Materials Studied --------- Grenade Launcher | -9/Materials | Hacked Imp. Aluminum Leg | -9/Materials | Hacked Aluminum Leg | -9/Materials | Hacked Lgt. Assault Rifle | -9/Materials | Hacked Lgt. Cannon | -9/Materials | Hacked Lgt. Treads | -9/Materials | Hacked Alien Tech Used ----------------- None Achievements -------------- Deductive Reasoning Item+ Overwhelming Part-time Mechanic Shopping List Challenges ------------ None Game ------ Seed TransportEnergyCorpse Manual? 0 Play Time 00:33:49 Cumulative 3.6 hours Start 2026.07.09 @ 22:39:48 End 2026.07.09 @ 23:33:40 Sessions 1 Manual Loads 0 Difficulty Rogue Special Mode None Game No. 5 Rogue 3 Adventurer 2 Explorer 0 Win Type - Total 0 Types 0/0/0/0/0/0/0/0/0/0 Lore% 2 Gallery% 5 Achievement% 7 Wizard Run 0 Options --------- Layout 0 ASCII 0 Keyboard 1 Movement Numpad Keybinds 0 Fullscreen 1 Font 18/SmallcapsGlow Map View 76x50 Zoom Use 7% Tactical HUD 1 Map Filters NONE Filters NONE Steam 1 RUN: 1eb7897e-bc64-4a19-971c-cace79e390e0